fUSD/lending_fUSD_20260405
["ID","MTS","AMOUNT","RATE_DAILY","PERIOD"]
[419773390,1775370647752,-163.60261744,0.00014246,2]
[419773391,1775370647762,-160.34417201,0.00014246,2]
[419773392,1775370647772,-500.0,0.00014246,2]
[419773393,1775370647783,-500.0,0.00014246,2]
[419773394,1775370647793,-500.0,0.00014246,2]
[419773395,1775370647803,-519.03182682,0.00014246,2]
[419773396,1775370647813,-500.0,0.00014246,2]
[419773397,1775370647824,-202.64993829,0.00014246,2]
[419773398,1775370647834,-162.72924009,0.00014246,2]
[419773399,1775370647844,-500.0,0.00014246,2]
[419773400,1775370647854,-210.98153295,0.00014246,2]
[419773401,1775370647865,-150.0,0.00014247,2]
[419773402,1775370647874,-1000.0,0.00014247,2]
[419773403,1775370647884,-1000.0,0.00014247,2]
[419773404,1775370647895,-1000.0,0.00014247,2]
[419773405,1775370647907,-1000.0,0.00014247,2]
[419773406,1775370647917,-1000.0,0.00014247,2]
[419773407,1775370647927,-861.43877969,0.00014247,2]
[419773408,1775370647937,-308.03873246,0.00014247,2]
[419773409,1775370647947,-730.09729929,0.00014247,2]
[419773410,1775370647957,-1000.0,0.00014247,2]
[419773411,1775370647967,-1000.0,0.00014247,2]
[419773412,1775370647977,-1000.0,0.00014247,2]
[419773413,1775370647987,-1000.0,0.00014247,2]
[419773414,1775370647998,-189.74788311,0.00014247,2]
[419773415,1775370648008,-500.0,0.00014282,2]
[419773416,1775370648019,-500.0,0.00014282,2]
[419773417,1775370648030,-339.79133416,0.00014282,2]
[419773418,1775370648040,-500.0,0.00014282,2]
[419773419,1775370648051,-500.13152132,0.00014306,2]
[419773420,1775370648062,-500.0,0.00014306,2]
[419773421,1775370648072,-823.0,0.00014335,2]
[419773422,1775370648082,-1393.31,0.00014346,2]
[419773423,1775370648093,-3292.0,0.00014369,2]
[419773424,1775370648103,-150.0,0.000144,2]
[419773425,1775370648114,-150.0,0.000144,2]
[419773426,1775370648124,-500.0,0.000144,2]
[419773427,1775370648135,-150.0,0.000144,2]
[419773428,1775370648144,-500.0,0.000144,2]
[419773429,1775370648155,-150.0,0.000144,2]
[419773430,1775370648165,-150.0,0.000144,2]
[419773431,1775370648175,-150.0,0.000144,2]
[419773432,1775370648185,-150.0,0.000144,2]
[419773433,1775370648195,-150.0,0.000144,2]
[419773434,1775370648205,-150.0,0.000144,2]
[419773435,1775370648215,-164.7501591,0.000144,2]
[419773436,1775370648226,-150.0,0.000144,2]
[419773437,1775370648241,-150.0,0.000144,2]
[419773438,1775370648251,-150.0,0.000144,2]
[419773439,1775370648261,-150.0,0.000144,2]
[419773440,1775370648273,-150.0,0.000144,2]
[419773441,1775370648283,-150.05716299,0.000144,2]
[419773442,1775370648293,-150.0,0.000144,2]
[419773443,1775370648304,-150.0,0.000144,2]
[419773444,1775370648314,-500.0,0.000144,2]
[419773445,1775370648325,-500.0,0.000144,2]
[419773446,1775370648336,-500.0,0.000144,2]
[419773447,1775370648346,-500.0,0.000144,2]
[419773448,1775370648356,-500.0,0.000144,2]
[419773449,1775370648367,-500.0,0.000144,2]
[419773450,1775370648378,-500.0,0.000144,2]
[419773451,1775370648388,-500.0,0.000144,2]
[419773452,1775370648399,-500.0,0.000144,2]
[419773453,1775370648409,-500.0,0.000144,2]
[419773454,1775370648420,-965.0,0.000144,2]
[419773455,1775370648431,-500.0,0.000144,2]
[419773456,1775370648443,-965.0,0.000144,2]
[419773457,1775370648453,-965.0,0.000144,2]
[419773458,1775370648463,-500.0,0.000144,2]
[419773459,1775370648773,-500.0,0.000144,2]
[419773460,1775370648817,-965.0,0.000144,2]
[419773461,1775370648828,-500.0,0.000144,2]
[419773462,1775370648838,-965.0,0.000144,2]
[419773463,1775370648847,-500.0,0.000144,2]
[419773464,1775370648857,-965.0,0.000144,2]
[419773465,1775370648867,-500.0,0.000144,2]
[419773466,1775370648878,-965.0,0.000144,2]
[419773467,1775370648887,-500.0,0.000144,2]
[419773468,1775370648897,-965.0,0.000144,2]
[419773469,1775370648907,-500.0,0.000144,2]
[419773470,1775370648918,-965.0,0.000144,2]
[419773471,1775370648930,-500.0,0.000144,2]
[419773472,1775370648942,-965.0,0.000144,2]
[419773473,1775370648953,-965.0,0.000144,2]
[419773474,1775370648964,-500.0,0.000144,2]
[419773475,1775370648975,-965.0,0.000144,2]
[419773476,1775370648988,-338.15756367,0.000144,2]
[419773477,1775370649000,-965.0,0.000144,2]
[419773478,1775370649010,-965.0,0.000144,2]
[419773479,1775370649021,-965.0,0.000144,2]
[419773480,1775370649033,-965.0,0.000144,2]
[419773481,1775370649045,-965.0,0.000144,2]
[419773482,1775370649055,-965.0,0.000144,2]
[419773483,1775370649067,-965.0,0.000144,2]
[419773484,1775370649077,-965.0,0.000144,2]
[419773485,1775370649087,-965.0,0.000144,2]
[419773486,1775370649097,-965.0,0.000144,2]
[419773487,1775370649107,-965.0,0.000144,2]
[419773488,1775370649117,-976.0,0.000144,2]
[419773489,1775370649128,-164.7501591,0.00014416,2]
[419773490,1775370649139,-150.0,0.00014417,2]
[419773491,1775370649149,-150.0,0.00014421,2]
[419773492,1775370649159,-150.0,0.00014424,2]
[419773493,1775370649169,-150.0,0.00014424,2]
[419773494,1775370649179,-578.20924308,0.00014425,2]
[419773495,1775370649189,-1428.38747117,0.00014425,2]
[419773496,1775370649199,-500.0,0.00014425,2]
[419773497,1775370649209,-209.40437684,0.00014425,2]
[419773498,1775370649219,-500.0,0.00014425,2]
[419773499,1775370649229,-200.0,0.00014425,2]
[419773500,1775370649239,-500.0,0.00014425,2]
[419773501,1775370649249,-721.12765535,0.00014425,2]
[419773502,1775370649259,-500.0,0.00014425,2]
[419773503,1775370649269,-500.0,0.00014425,2]
[419773504,1775370649278,-500.0,0.00014425,2]
[419773505,1775370649288,-500.0,0.00014425,2]
[419773506,1775370649298,-500.0,0.00014425,2]
[419773507,1775370649308,-500.0,0.00014425,2]
[419773508,1775370649318,-500.0,0.00014425,2]
[419773509,1775370649328,-500.0,0.00014425,2]
[419773510,1775370649338,-500.0,0.00014425,2]
[419773511,1775370649349,-151.0,0.00014425,2]
[419773512,1775370649359,-151.0,0.00014425,2]
[419773513,1775370649370,-151.0,0.00014425,2]
[419773514,1775370649382,-250.0,0.00014425,2]
[419773515,1775370649396,-154.76515316,0.00014425,2]
[419773516,1775370649407,-250.0,0.00014425,2]
[419773517,1775370649418,-250.0,0.00014425,2]
[419773518,1775370649427,-250.0,0.00014425,2]
[419773519,1775370649437,-250.0,0.00014425,2]
[419773520,1775370649447,-250.0,0.00014425,2]
[419773521,1775370649456,-250.0,0.00014425,2]
[419773522,1775370649466,-250.0,0.00014425,2]
[419773523,1775370649476,-250.0,0.00014425,2]
[419773524,1775370649485,-250.0,0.00014425,2]
[419773525,1775370649495,-250.0,0.00014425,2]
[419773526,1775370649505,-500.0,0.00014425,2]
[419773527,1775370649514,-500.0,0.00014425,2]
[419773528,1775370649524,-209.40437684,0.00014425,2]
[419773529,1775370649534,-500.0,0.00014425,2]
[419773530,1775370649544,-500.0,0.00014425,2]
[419773531,1775370649554,-500.0,0.00014425,2]
[419773532,1775370649563,-500.0,0.00014425,2]
[419773533,1775370649573,-174.61919141,0.00014425,2]
[419773534,1775370649582,-500.0,0.00014425,2]
[419773535,1775370649592,-500.0,0.00014425,2]
[419773536,1775370649603,-743.50770149,0.00014425,2]
[419773537,1775370649613,-151.0,0.00014425,2]
[419773538,1775370649623,-200.0,0.00014425,2]
[419773539,1775370649632,-500.0,0.00014425,2]
[419773540,1775370649642,-500.0,0.00014425,2]
[419773541,1775370649651,-500.0,0.00014425,2]
[419773542,1775370649661,-157.03985341,0.00014425,2]
[419773543,1775370649670,-693.3919763,0.00014425,2]
[419773544,1775370649679,-170.0,0.00014425,2]
[419773545,1775370649693,-170.0,0.00014425,2]
[419773546,1775370649703,-170.0,0.00014425,2]
[419773547,1775370649712,-170.0,0.00014425,2]
[419773548,1775370649722,-170.0,0.00014425,2]
[419773549,1775370649732,-170.0,0.00014425,2]
[419773550,1775370649741,-170.0,0.00014425,2]
[419773551,1775370649751,-170.0,0.00014425,2]
[419773552,1775370649760,-279.9045709,0.00014425,2]
[419773553,1775370649769,-500.0,0.00014425,2]
[419773554,1775370649779,-170.0,0.00014425,2]
[419773555,1775370649788,-500.0,0.00014425,2]
[419773556,1775370649798,-170.0,0.00014425,2]
[419773557,1775370649807,-170.0,0.00014425,2]
[419773558,1775370649819,-500.0,0.00014425,2]
[419773559,1775370649829,-500.0,0.00014425,2]
[419773560,1775370649838,-500.0,0.00014425,2]
[419773561,1775370649847,-150.0,0.00014427,2]
[419773562,1775370649857,-164.7501591,0.00014432,2]
[419773563,1775370649867,-150.0,0.00014434,2]
[419773564,1775370649876,-500.0,0.00014437,2]
[419773565,1775370649886,-150.0,0.00014442,2]
[419773566,1775370649896,-150.0,0.00014444,2]
[419773567,1775370649906,-150.0,0.00014447,2]
[419773568,1775370649915,-150.0,0.00014448,2]
[419773569,1775370649925,-164.7501591,0.00014448,2]
[419773570,1775370649934,-150.0,0.00014451,2]
[419773571,1775370649944,-150.0,0.00014453,2]
[419773572,1775370649954,-150.0,0.00014457,2]
[419773573,1775370649963,-150.0,0.00014462,2]
[419773574,1775370649972,-164.7501591,0.00014465,2]
[419773575,1775370649982,-150.0,0.00014468,2]
[419773576,1775370649991,-150.0,0.00014471,2]
[419773577,1775370650000,-150.0,0.00014472,2]
[419773578,1775370650010,-359.42,0.00014472,2]
[419773579,1775370650021,-150.0,0.00014473,2]
[419773580,1775370650031,-500.0,0.0001448,2]
[419773581,1775370650040,-151.0,0.0001448,2]
[419773582,1775370650050,-150.0,0.0001448,2]
[419773583,1775370650059,-164.7501591,0.00014481,2]
[419773584,1775370650068,-150.0,0.00014483,2]
[419773585,1775370650077,-150.0,0.00014485,2]
[419773586,1775370650087,-150.0,0.00014489,2]
[419773587,1775370650096,-150.0,0.00014494,2]
[419773588,1775370650105,-150.0,0.00014496,2]
[419773589,1775370650114,-164.7501591,0.00014497,2]
[419773590,1775370650123,-150.0,0.00014502,2]
[419773591,1775370650133,-150.0,0.00014504,2]
[419773592,1775370650142,-150.0,0.00014507,2]
[419773593,1775370650152,-164.7501591,0.00014513,2]
[419773594,1775370650161,-150.0,0.00014514,2]
[419773595,1775370650170,-394.33251111,0.00014517,2]
[419773596,1775370650179,-150.0,0.00014518,2]
[419773597,1775370650189,-150.0,0.00014519,2]
[419773598,1775370650198,-150.0,0.00014519,2]
[419773599,1775370650208,-150.0,0.00014525,2]
[419773600,1775370650217,-500.0,0.00014527,2]
[419773601,1775370650227,-164.7501591,0.00014529,2]
[419773602,1775370650236,-150.0,0.00014533,2]
[419773603,1775370650246,-150.0,0.00014533,2]
[419773604,1775370650256,-501.0,0.00014534,3]
[419773605,1775370650266,-500.0,0.00014535,2]
[419773606,1775370650275,-151.0,0.00014535,2]
[419773607,1775370650285,-150.0,0.00014536,2]
[419773608,1775370650295,-150.0,0.00014541,2]
[419773609,1775370650305,-150.0,0.00014543,2]
[419773610,1775370650315,-164.7501591,0.00014545,2]
[419773611,1775370650326,-150.0,0.00014545,2]
[419773612,1775370650337,-150.0,0.00014545,2]
[419773613,1775370650348,-1202.26397854,0.00014547,2]
[419773614,1775370650358,-150.0,0.00014553,2]
[419773615,1775370650368,-150.0,0.0001456,2]
[419773616,1775370650378,-164.7501591,0.00014562,2]
[419773617,1775370650388,-150.0,0.00014565,2]
[419773618,1775370650399,-1000.0,0.00014566,2]
[419773619,1775370650409,-150.0,0.00014566,2]
[419773620,1775370650418,-150.0,0.00014567,2]
[419773621,1775370650428,-150.0,0.0001457,2]
[419773622,1775370650437,-150.0,0.00014571,2]
[419773623,1775370650447,-164.7501591,0.00014578,2]
[419773624,1775370650456,-150.0,0.00014578,2]
[419773625,1775370650466,-150.0,0.00014587,2]
[419773626,1775370650475,-150.0,0.00014587,2]
[419773627,1775370650484,-150.0,0.00014587,2]
[419773628,1775370650494,-150.0,0.00014588,2]
[419773629,1775370650504,-500.0,0.0001459,2]
[419773630,1775370650513,-151.0,0.0001459,2]
[419773631,1775370650523,-150.0,0.00014591,2]
[419773632,1775370650532,-164.7501591,0.00014594,2]
[419773633,1775370650543,-160.0,0.00014596,2]
[419773634,1775370650553,-160.9517,0.000146,2]
[419773635,1775370650563,-429.6676209,0.000146,2]
[419773636,1775370650573,-150.0,0.000146,2]
[419773637,1775370650582,-150.0,0.00014604,2]
[419773638,1775370650592,-150.0,0.00014608,2]
[419773639,1775370650602,-164.7501591,0.0001461,2]
[419773640,1775370650612,-150.0,0.00014612,2]
[419773641,1775370650622,-1516.65076824,0.00014612,2]
[419773642,1775370650632,-150.0,0.00014613,2]
[419773643,1775370650643,-150.0,0.00014615,2]
[419773644,1775370650653,-150.0,0.00014618,2]
[419773645,1775370650663,-1393.31,0.0001462,2]
[419773646,1775370650672,-150.0,0.00014621,2]
[419773647,1775370650681,-150.0,0.00014622,2]
[419773648,1775370650691,-164.7501591,0.00014626,2]
[419773649,1775370650701,-150.0,0.00014629,2]
[419773650,1775370650711,-150.0,0.00014629,2]
[419773651,1775370650721,-150.0,0.00014635,2]
[419773652,1775370650731,-150.0,0.00014638,2]
[419773653,1775370650741,-150.0,0.00014639,2]
[419773654,1775370650751,-150.0,0.0001464,2]
[419773655,1775370650760,-164.7501591,0.00014642,2]
[419773656,1775370650771,-500.0,0.00014645,2]
[419773657,1775370650780,-151.0,0.00014645,2]
[419773658,1775370650791,-5695.5028364,0.00014647,2]
[419773659,1775370650802,-150.0,0.00014649,2]
[419773660,1775370650811,-150.0,0.00014655,2]
[419773661,1775370650821,-164.7501591,0.00014659,2]
[419773662,1775370650830,-150.0,0.00014659,2]
[419773663,1775370650840,-150.0,0.00014663,2]
[419773664,1775370650849,-150.0,0.00014667,2]
[419773665,1775370650859,-150.0,0.00014667,2]
[419773666,1775370650868,-150.0,0.0001467,2]
[419773667,1775370650879,-150.0,0.00014672,2]
[419773668,1775370650889,-150.0,0.00014674,2]
[419773669,1775370650899,-150.0,0.00014674,2]
[419773670,1775370650909,-500.0,0.00014674,2]
[419773671,1775370650918,-150.0,0.00014674,2]
[419773672,1775370650929,-500.0,0.00014674,2]
[419773673,1775370650938,-164.7501591,0.00014675,2]
[419773674,1775370650949,-150.0,0.00014682,2]
[419773675,1775370650959,-150.0,0.00014686,2]
[419773676,1775370650970,-150.0,0.00014687,2]
[419773677,1775370650979,-150.0,0.00014689,2]
[419773678,1775370650991,-164.7501591,0.00014691,2]
[419773679,1775370651001,-150.0,0.00014691,2]
[419773680,1775370651011,-150.0,0.00014691,2]
[419773681,1775370651020,-150.0,0.00014693,2]
[419773682,1775370651029,-1000.0,0.00014698,2]
[419773683,1775370651039,-500.0,0.000147,2]
[419773684,1775370651048,-151.0,0.000147,2]
[419773685,1775370651057,-160.9517,0.000147,2]
[419773686,1775370651067,-150.0,0.00014706,2]
[419773687,1775370651075,-150.0,0.00014706,2]
[419773688,1775370651085,-164.7501591,0.00014707,2]
[419773689,1775370651094,-150.0,0.0001471,2]
[419773690,1775370651103,-150.0,0.00014711,2]
[419773691,1775370651113,-150.0,0.00014712,2]
[419773692,1775370651122,-150.0,0.0001472,2]
[419773693,1775370651131,-150.0,0.0001472,2]
[419773694,1775370651141,-164.7501591,0.00014723,2]
[419773695,1775370651150,-150.0,0.00014723,2]
[419773696,1775370651160,-150.0,0.00014729,2]
[419773697,1775370651169,-150.0,0.00014732,2]
[419773698,1775370651179,-150.0,0.00014734,2]
[419773699,1775370651187,-159.74,0.00014737,2]
[419773700,1775370651197,-164.7501591,0.00014739,2]
[419773701,1775370651206,-150.0,0.0001474,2]
[419773702,1775370651216,-627.70930647,0.00014741,2]
[419773703,1775370651226,-1000.0,0.00014741,2]
[419773704,1775370651236,-2000.0,0.00014742,2]
[419773705,1775370651245,-150.0,0.00014743,2]
[419773706,1775370651355,-150.0,0.00014747,2]
[419773707,1775370651366,-159.74,0.0001475,2]
[419773708,1775370651375,-150.0,0.00014753,2]
[419773709,1775370651384,-150.0,0.00014753,2]
[419773710,1775370651394,-500.0,0.00014755,2]
[419773711,1775370651403,-151.0,0.00014755,2]
[419773712,1775370651414,-164.7501591,0.00014756,2]
[419773713,1775370651424,-150.0,0.00014756,2]
[419773714,1775370651434,-1000.0,0.00014756,2]
[419773715,1775370651443,-150.0,0.00014757,2]
[419773716,1775370651453,-150.0,0.00014758,2]
[419773717,1775370651462,-1000.0,0.00014759,2]
[419773718,1775370651472,-150.0,0.00014764,2]
[419773719,1775370651481,-159.73375685,0.00014764,2]
[419773720,1775370651490,-164.7501591,0.00014772,2]
[419773721,1775370651499,-150.0,0.00014773,2]
[419773722,1775370651508,-150.0,0.00014774,2]
[419773723,1775370651519,-150.0,0.00014774,2]
[419773724,1775370651528,-150.0,0.00014776,2]
[419773725,1775370651538,-304.84,0.00014777,2]
[419773726,1775370651547,-1000.0,0.00014777,2]
[419773727,1775370651556,-1000.0,0.00014777,2]
[419773728,1775370651566,-1000.0,0.00014777,2]
[419773729,1775370651575,-150.0,0.00014782,2]
[419773730,1775370651584,-1000.0,0.00014784,2]
[419773731,1775370651593,-1000.0,0.00014784,2]
[419773732,1775370651602,-32612.67829662,0.00014785,2]
[419773733,1775370651611,-164.7501591,0.00014788,2]
[419773734,1775370651620,-1000.0,0.0001479,2]
[419773735,1775370651629,-1000.0,0.0001479,2]
[419773736,1775370651639,-500.99241895,0.0001479,2]
[419773737,1775370651648,-790.32775663,0.0001479,2]
[419773738,1775370651657,-743.80429884,0.0001479,2]
[419773739,1775370651666,-150.0,0.00014791,2]
[419773740,1775370651675,-686.27125357,0.00014794,2]
[419773741,1775370651684,-500.0,0.00014794,2]
[419773742,1775370651694,-1000.0,0.00014794,2]
[419773743,1775370651703,-1000.0,0.00014794,2]
[419773744,1775370651711,-1000.0,0.00014794,2]
[419773745,1775370651720,-1000.0,0.00014794,2]
[419773746,1775370651729,-1000.0,0.00014794,2]
[419773747,1775370651739,-180.00096908,0.00014794,2]
[419773748,1775370651748,-1000.0,0.00014794,2]
[419773749,1775370651758,-1000.0,0.00014794,2]
[419773750,1775370651768,-1000.0,0.00014794,2]
[419773751,1775370651777,-1000.0,0.00014794,2]
[419773752,1775370651788,-1000.0,0.00014794,2]
[419773753,1775370651798,-1000.0,0.00014794,2]
[419773754,1775370651807,-1500.0,0.00014795,2]
[419773755,1775370651816,-1500.0,0.00014795,2]
[419773756,1775370651825,-1500.0,0.00014795,2]
[419773757,1775370651834,-1515.96545288,0.00014795,2]
[419773758,1775370651843,-953.31303788,0.00014795,2]
[419773759,1775370651852,-1500.0,0.00014795,2]
[419773760,1775370651861,-1500.0,0.00014795,2]
[419773761,1775370651870,-1500.0,0.00014795,2]
[419773762,1775370651879,-1500.0,0.00014795,2]
[419773763,1775370651888,-150.0,0.00014795,2]
[419773764,1775370651897,-553.41835149,0.00014795,2]
[419773765,1775370651908,-160.9517,0.000148,2]
[419773766,1775370651918,-150.0,0.000148,2]
[419773767,1775370651928,-150.0,0.000148,2]
[419773768,1775370651937,-150.0,0.000148,2]
[419773769,1775370651946,-150.0,0.000148,2]
[419773770,1775370651956,-150.0,0.000148,2]
[419773771,1775370651976,-164.7501591,0.00014804,2]
[419773772,1775370651990,-150.0,0.00014806,2]
[419773773,1775370652001,-150.0,0.00014809,2]
[419773774,1775370652011,-500.0,0.0001481,2]
[419773775,1775370652020,-151.0,0.0001481,2]
[419773776,1775370652029,-150.0,0.00014816,2]
[419773777,1775370652039,-164.7501591,0.0001482,2]
[419773778,1775370652047,-150.0,0.00014824,2]
[419773779,1775370652057,-150.0,0.00014826,2]
[419773780,1775370652066,-150.0,0.00014827,2]
[419773781,1775370652075,-150.0,0.0001483,2]
[419773782,1775370652084,-1000.0,0.0001483,2]
[419773783,1775370652093,-1000.0,0.0001483,2]
[419773784,1775370652102,-1000.0,0.0001483,2]
[419773785,1775370652112,-164.7501591,0.00014836,2]
[419773786,1775370652121,-150.0,0.00014836,2]
[419773787,1775370652130,-150.0,0.00014836,2]
[419773788,1775370652140,-150.0,0.00014843,2]
[419773789,1775370652150,-1000.0,0.00014843,2]
[419773790,1775370652159,-150.0,0.00014844,2]
[419773791,1775370652168,-150.0,0.00014847,2]
[419773792,1775370652178,-164.7501591,0.00014853,2]
[419773793,1775370652189,-6017.98,0.00014853,2]
[419773794,1775370652199,-2855.05,0.00014853,2]
[419773795,1775370652208,-28985.77,0.00014853,2]
[419773796,1775370652218,-150.0,0.00014853,2]
[419773797,1775370652228,-1000.0,0.00014854,2]
[419773798,1775370652238,-150.0,0.00014854,2]
[419773799,1775370652247,-150.0,0.00014857,2]
[419773800,1775370652257,-150.0,0.00014857,2]
[419773801,1775370652266,-150.0,0.0001486,2]
[419773802,1775370652276,-500.0,0.00014865,2]
[419773803,1775370652285,-151.0,0.00014865,2]
[419773804,1775370652295,-164.7501591,0.00014869,2]
[419773805,1775370652304,-150.0,0.00014871,2]
[419773806,1775370652314,-150.0,0.00014877,2]
[419773807,1775370652324,-150.0,0.00014878,2]
[419773808,1775370652335,-150.0,0.00014878,2]
[419773809,1775370652345,-150.0,0.0001488,2]
[419773810,1775370652356,-164.7501591,0.00014885,2]
[419773811,1775370652367,-150.0,0.00014889,2]
[419773812,1775370652377,-1000.0,0.00014889,2]
[419773813,1775370652387,-2324.0,0.0001489,5]
[419773814,1775370652397,-1658.0,0.0001489,5]
[419773815,1775370652407,-150.0,0.00014894,2]
[419773816,1775370652416,-1393.42,0.00014894,2]
[419773817,1775370652427,-150.0,0.00014894,2]
[419773818,1775370652436,-150.0,0.00014899,2]
[419773819,1775370652445,-160.9517,0.000149,2]
[419773820,1775370652455,-164.7501591,0.00014901,2]
[419773821,1775370652465,-150.0,0.00014901,2]
[419773822,1775370652474,-3000.0,0.00014904,2]
[419773823,1775370652483,-150.0,0.00014907,2]
[419773824,1775370652492,-150.0,0.00014909,2]
[419773825,1775370652502,-150.0,0.00014911,2]
[419773826,1775370652511,-150.0,0.00014914,2]
[419773827,1775370652520,-164.7501591,0.00014917,2]
[419773828,1775370652529,-150.0,0.00014918,2]
[419773829,1775370652539,-150.0,0.00014919,2]
[419773830,1775370652548,-500.0,0.0001492,2]
[419773831,1775370652557,-151.0,0.0001492,2]
[419773832,1775370652567,-150.0,0.00014925,2]
[419773833,1775370652576,-150.0,0.00014928,2]
[419773834,1775370652585,-150.0,0.00014933,2]
[419773835,1775370652595,-164.7501591,0.00014933,2]
[419773836,1775370652604,-150.0,0.00014933,2]
[419773837,1775370652613,-150.0,0.00014933,2]
[419773838,1775370652623,-1000.0,0.00014938,2]
[419773839,1775370652633,-566.37,0.0001494,2]
[419773840,1775370652643,-728.92,0.0001494,2]
[419773841,1775370652652,-592.65026915,0.0001494,2]
[419773842,1775370652662,-150.0,0.0001494,2]
[419773843,1775370652671,-150.0,0.00014941,2]
[419773844,1775370652680,-150.0,0.00014945,2]
[419773845,1775370652690,-150.0,0.00014948,2]
[419773846,1775370652699,-150.0,0.00014948,2]
[419773847,1775370652708,-500.0,0.00014948,2]
[419773848,1775370652718,-150.0,0.00014948,2]
[419773849,1775370652727,-500.0,0.00014948,2]
[419773850,1775370652736,-150.0,0.00014949,2]
[419773851,1775370652746,-164.7501591,0.00014949,2]
[419773852,1775370652756,-150.0,0.0001496,2]
[419773853,1775370652765,-150.0,0.00014961,2]
[419773854,1775370652774,-150.0,0.00014962,2]
[419773855,1775370652783,-150.0,0.00014965,2]
[419773856,1775370652793,-164.7501591,0.00014966,2]
[419773857,1775370652802,-150.0,0.00014971,2]
[419773858,1775370652811,-217.15233878,0.00014973,2]
[419773859,1775370652820,-1481.23780761,0.00014973,2]
[419773860,1775370652829,-200.0,0.00014973,2]
[419773861,1775370652839,-339.62894544,0.00014973,2]
[419773862,1775370652848,-181.08010149,0.00014973,2]
[419773863,1775370652857,-771.01748645,0.00014973,2]
[419773864,1775370652866,-200.0,0.00014973,2]
[419773865,1775370652875,-719.04747942,0.00014973,2]
[419773866,1775370652884,-290.26104003,0.00014973,2]
[419773867,1775370652894,-1000.0,0.00014973,2]
[419773868,1775370652904,-150.0,0.00014973,2]
[419773869,1775370652913,-500.0,0.00014975,2]
[419773870,1775370652923,-151.0,0.00014975,2]
[419773871,1775370652933,-150.0,0.00014978,2]
[419773872,1775370652942,-150.0,0.00014979,2]
[419773873,1775370652952,-164.7501591,0.00014982,2]
[419773874,1775370652962,-150.0,0.00014982,2]
[419773875,1775370652972,-150.0,0.00014982,2]
[419773876,1775370652981,-150.0,0.00014987,2]
[419773877,1775370652991,-150.0,0.00014988,2]
[419773878,1775370653000,-150.0,0.00014996,2]
[419773879,1775370653010,-150.0,0.00014997,2]
[419773880,1775370653020,-164.7501591,0.00014998,2]
[419773881,1775370653029,-788.29024,0.00015,2]
[419773882,1775370653039,-150.0,0.00015,2]
[419773883,1775370653049,-150.0,0.00015003,2]
[419773884,1775370653058,-150.0,0.00015012,2]
[419773885,1775370653069,-150.0,0.00015013,2]
[419773886,1775370653078,-150.0,0.00015013,2]
[419773887,1775370653088,-164.7501591,0.00015014,2]
[419773888,1775370653098,-500.0,0.00015017,2]
[419773889,1775370653108,-150.0,0.00015021,2]